bitfinex-derivatives/quotes_ETHF0:USTF0_20260306
["timestamp","ask_amount","ask_price","bid_price","bid_amount"]
[1772770170829,0.5778553,2083.4,2082.5,0.54961949]
[1772770171021,0.5778553,2083.2,2082.0,26.23188061]
[1772770171227,0.5778553,2082.9,2082.1,0.54961949]
[1772770172029,0.5778553,2082.9,2082.1,0.55459047]
[1772770172432,6.8668553,2082.9,2082.1,0.00497098]
[1772770172730,0.5778553,2082.8,2081.9,0.54961949]
[1772770173032,0.5778553,2082.8,2082.0,0.54961949]
[1772770173527,0.5778553,2082.8,2082.0,0.55477075]
[1772770176133,0.5778553,2082.8,2082.0,0.00515126]
[1772770176429,0.5778553,2082.6,2082.0,0.00515126]
[1772770176630,0.58180084,2082.6,2081.7,0.54961949]
[1772770177524,0.58180084,2082.6,2081.7,0.00534955]
[1772770180225,0.5778553,2082.4,2081.7,0.00534955]
[1772770180430,0.5778553,2082.4,2081.4,0.54961949]
[1772770180431,0.5778553,2082.2,2081.4,0.54961949]
[1772770180827,0.5778553,2082.2,2081.2,40.8]
[1772770180828,1.56344935,2082.1,2080.8,0.54961949]
[1772770181034,0.5778553,2082.0,2080.8,0.54961949]
[1772770181431,0.5778553,2082.0,2080.9,0.54961949]
[1772770181632,0.5778553,2081.7,2080.8,0.55330264]
[1772770181835,0.5778553,2081.5,2080.8,0.55330264]
[1772770183732,0.5778553,2081.5,2080.7,0.54961949]
[1772770184038,0.5778553,2081.5,2080.2,0.54961949]
[1772770184636,0.5778553,2081.5,2080.2,0.55399577]
[1772770187637,0.5778553,2081.5,2080.4,0.54961949]
[1772770190332,0.5778553,2081.4,2080.4,0.54961949]
[1772770194438,0.5778553,2081.4,2080.6,0.54961949]
[1772770194831,4.24269886,2082.1,2080.6,0.54961949]
[1772770195139,0.5778553,2081.7,2080.6,0.54961949]
[1772770201234,0.54096184,2081.5,2080.4,0.55718702]
[1772770201434,0.54096184,2081.3,2080.2,0.5615633]
[1772770201638,0.54096184,2081.1,2080.2,0.5615633]
[1772770201842,0.54448806,2081.1,2080.2,0.5615633]
[1772770203642,1.5685045,2080.8,2079.5,0.55718702]
[1772770203849,0.54096184,2080.6,2079.5,0.55718702]
[1772770204142,0.54096184,2080.6,2080.1,0.55718702]
[1772770204742,0.54096184,2080.6,2080.1,0.56330267]
[1772770204942,0.54096184,2080.7,2080.1,0.56330267]
[1772770205136,0.54096184,2080.7,2080.4,0.06353922]
[1772770205947,0.54096184,2080.7,2080.1,0.56330267]
[1772770208940,0.54096184,2080.7,2080.1,0.00611565]
[1772770209244,0.54096184,2080.4,2079.1,0.55718702]
[1772770209444,0.54096184,2080.3,2079.1,0.55718702]
[1772770209643,0.54096184,2080.2,2079.1,0.55718702]
[1772770209844,0.54096184,2080.2,2079.3,0.55718702]
[1772770210045,0.54096184,2080.0,2079.3,0.55718702]
[1772770210244,0.54096184,2080.0,2079.3,0.5607679]
[1772770210544,0.54096184,2080.3,2079.3,0.5607679]
[1772770210744,6.83196184,2080.4,2079.3,0.5607679]
[1772770210944,0.54096184,2080.7,2079.3,0.5607679]
[1772770211147,0.54096184,2080.6,2079.3,0.5607679]
[1772770212544,0.54096184,2080.5,2079.3,0.5607679]
[1772770212748,5.4369828,2080.4,2079.3,0.5607679]
[1772770212940,0.54096184,2080.3,2079.3,0.5607679]
[1772770213746,0.54096184,2080.5,2079.3,0.5607679]
[1772770216449,0.54096184,2080.5,2079.4,0.55718702]
[1772770219452,0.54096184,2080.5,2079.6,0.55718702]
[1772770221361,0.54096184,2080.8,2079.6,0.55718702]
[1772770222048,0.54096184,2080.6,2079.6,0.55718702]
[1772770224859,0.54096184,2080.4,2079.3,0.5607679]
[1772770225459,0.54096184,2080.4,2079.4,0.55718702]
[1772770227266,0.54096184,2080.2,2079.4,0.55718702]
[1772770228766,0.54096184,2080.2,2079.5,0.55718702]
[1772770228971,0.54096184,2080.6,2079.5,0.55718702]
[1772770229370,0.57108987,2080.4,2079.5,0.55718702]
[1772770234877,0.59368174,2080.2,2079.5,0.55718702]
[1772770235074,0.59368174,2080.2,2079.4,0.59335142]
[1772770235376,6.24316268,2080.6,2078.9,0.59335142]
[1772770235377,0.59368174,2079.9,2078.9,0.59335142]
[1772770235578,0.59368174,2079.7,2078.9,0.59335142]
[1772770235878,0.59368174,2079.5,2078.9,0.59335142]
[1772770236376,0.5988608,2079.5,2078.9,0.59818465]
[1772770238071,0.00517906,2079.5,2078.9,0.59818465]
[1772770238270,0.5988608,2079.5,2078.9,0.59818465]
[1772770238477,0.00517906,2079.5,2078.9,0.59818465]
[1772770240278,0.5988608,2079.5,2078.9,0.59818465]
[1772770241774,0.00517906,2079.5,2078.9,0.59818465]
[1772770243978,0.5988608,2079.5,2078.9,0.59818465]
[1772770245079,0.5988608,2079.5,2078.9,0.00483323]
[1772770245481,0.5988608,2079.5,2078.7,0.59335142]
[1772770245983,0.5988608,2079.5,2078.6,41.39335142]
[1772770246282,0.5988608,2079.5,2078.5,0.59335142]
[1772770246485,0.5988608,2079.5,2078.5,0.59861398]
[1772770246684,0.5988608,2079.5,2078.5,41.39861398]
[1772770247082,0.5988608,2079.5,2078.5,0.59861398]
[1772770247379,0.59368174,2079.3,2078.5,0.59861398]
[1772770248582,0.59368174,2079.4,2078.5,0.59861398]
[1772770251686,0.5988608,2079.5,2078.5,0.59861398]
[1772770252286,0.00517906,2079.5,2078.5,0.59861398]
[1772770252589,0.5988608,2079.5,2078.5,0.59861398]
[1772770252782,0.00517906,2079.5,2078.5,0.59861398]
[1772770253989,0.59368174,2080.1,2078.7,0.59335142]
[1772770254288,0.59368174,2079.9,2078.9,0.59335142]
[1772770254882,5.45218148,2079.8,2078.9,0.59335142]
[1772770255084,0.59368174,2079.7,2078.9,0.59335142]
[1772770255685,0.59368174,2079.7,2078.7,0.59335142]
[1772770261189,0.59368174,2079.7,2078.5,0.59258709]
[1772770262192,0.54210002,2079.5,2078.5,0.59258709]
[1772770262495,0.54210002,2079.8,2078.7,0.58732453]
[1772770262688,0.54210002,2079.8,2078.8,0.58732453]
[1772770263293,0.00463317,2079.9,2079.0,0.58732453]
[1772770263494,0.00463317,2079.9,2079.2,0.58732453]
[1772770263694,0.54210002,2079.8,2078.9,0.58732453]
[1772770263895,0.54210002,2079.7,2078.9,0.58732453]
[1772770266387,0.54210002,2079.7,2078.8,0.58732453]
[1772770266592,0.54210002,2079.5,2078.6,41.38732453]
[1772770266892,0.54210002,2079.5,2078.6,0.58732453]
[1772770267696,0.54210002,2079.3,2078.5,0.00526256]
[1772770267891,0.54210002,2079.3,2078.5,0.59258709]
[1772770270598,0.54210002,2079.6,2078.5,0.59258709]
[1772770270893,0.54210002,2079.5,2078.5,0.59258709]
[1772770273799,0.54210002,2079.7,2078.7,0.58732453]
[1772770274596,0.54210002,2079.7,2078.8,0.58732453]
[1772770274802,0.00463317,2079.9,2078.8,0.58732453]
[1772770275100,0.54210002,2079.7,2078.8,0.58732453]
[1772770275699,0.54673319,2079.9,2078.8,0.58732453]
[1772770275901,0.00463317,2079.9,2079.0,0.58732453]
[1772770276204,0.00463317,2079.9,2079.1,0.58732453]
[1772770276702,6.00286268,2080.5,2079.2,0.58732453]
[1772770276703,0.54210002,2080.3,2079.2,0.58732453]
[1772770277199,0.54210002,2080.3,2079.1,2.2186317]
[1772770277200,0.54210002,2080.3,2079.4,0.58732453]
[1772770277702,0.00539505,2080.3,2079.4,0.58732453]
[1772770278701,0.54749507,2080.3,2079.4,0.58732453]
[1772770280606,0.00539505,2080.3,2079.4,0.58732453]
[1772770282600,0.54210002,2079.9,2078.7,8.09464075]
[1772770282800,0.54210002,2079.9,2078.8,0.58732453]
[1772770283807,0.54210002,2079.9,2078.9,0.58732453]
[1772770288212,0.54210002,2079.9,2079.1,0.58732453]
[1772770290710,1.31701868,2080.2,2079.1,0.58732453]
[1772770290905,0.00539505,2080.3,2079.2,1.41727884]
[1772770291112,1.32241373,2080.3,2079.2,1.41727884]
[1772770292012,0.00539505,2080.3,2079.4,1.41727884]
[1772770293820,1.32241373,2080.3,2079.4,1.41727884]
[1772770299116,1.32241373,2080.3,2079.6,1.41727884]
[1772770303721,1.31701868,2080.7,2079.6,1.65768884]
[1772770304715,1.32103378,2080.7,2079.6,1.65768884]
[1772770307023,1.32103378,2080.7,2079.8,1.41727884]
[1772770309020,1.32103378,2080.7,2079.7,1.41727884]
[1772770309222,1.32103378,2080.7,2079.8,20.421]
[1772770309721,1.32103378,2080.7,2079.7,21.73227884]
[1772770311420,1.31701868,2080.5,2079.7,21.73227884]
[1772770312522,1.31701868,2080.5,2079.6,1.41727884]
[1772770314015,1.31701868,2080.3,2079.6,1.41727884]
[1772770316619,1.31701868,2080.3,2079.3,21.76627884]
[1772770317220,1.31701868,2080.3,2079.4,1.41727884]
[1772770320427,1.28253023,2080.1,2079.4,1.41727884]
[1772770320930,1.28253023,2080.5,2079.4,1.41727884]
[1772770321230,1.28253023,2080.3,2079.4,1.41727884]
[1772770322336,1.28253023,2080.3,2079.6,1.26594909]
[1772770324836,1.28253023,2080.3,2079.2,7.50731622]
[1772770325047,1.28253023,2080.3,2079.5,1.26594909]
[1772770325935,1.28253023,2080.3,2079.4,1.26594909]
[1772770326138,1.52289023,2080.1,2079.2,21.60194909]
[1772770326336,1.28253023,2079.9,2079.2,21.60194909]
[1772770327040,1.28253023,2079.7,2079.0,21.60094909]
[1772770328237,1.28253023,2079.7,2079.1,1.26594909]
[1772770328832,0.24036,2080.1,2079.1,1.26594909]
[1772770329038,1.28253023,2079.9,2079.1,1.26594909]
[1772770330344,1.28253023,2079.9,2079.1,21.60194909]
[1772770330736,1.28253023,2079.9,2079.2,1.26594909]
[1772770331043,1.28253023,2079.9,2078.9,1.26594909]
[1772770341749,1.28253023,2080.2,2079.0,1.26594909]
[1772770342154,1.28253023,2080.2,2079.1,1.26594909]
[1772770342349,1.28253023,2080.2,2079.2,1.26594909]
[1772770342657,1.28253023,2080.2,2079.3,1.26594909]
[1772770342854,1.28253023,2080.2,2079.5,1.26594909]
[1772770347458,1.28253023,2080.2,2079.6,20.27]
[1772770348361,1.28253023,2080.2,2079.6,21.53594909]
[1772770350963,1.28253023,2080.2,2079.6,21.52094909]
[1772770352063,1.28253023,2080.2,2079.7,1.06163669]
[1772770355058,1.15315578,2080.4,2079.7,1.06163669]
[1772770357068,1.15315578,2080.2,2079.8,20.235]
[1772770357368,1.15315578,2080.2,2079.8,19.76646634]
[1772770360873,1.15315578,2080.2,2079.8,20.82810303]
[1772770361063,1.15315578,2080.2,2079.9,1.06163669]
[1772770361769,1.15315578,2080.4,2079.9,1.06163669]
[1772770365673,1.15315578,2080.2,2079.8,20.209]
[1772770366074,1.15315578,2080.2,2079.7,1.06163669]
[1772770366279,1.15315578,2080.2,2079.7,21.26963669]
[1772770366872,1.15315578,2080.2,2079.8,1.06163669]
[1772770367573,1.15315578,2080.2,2079.7,21.26963669]
[1772770368076,1.15315578,2080.2,2079.8,1.06163669]
[1772770370578,1.15315578,2080.2,2079.7,21.25963669]
[1772770371379,1.15315578,2080.2,2079.8,1.06163669]
[1772770371676,1.15315578,2080.2,2079.7,21.25963669]
[1772770373676,1.15315578,2080.2,2079.8,1.06163669]
[1772770374273,1.15315578,2080.2,2079.4,1.06163669]
[1772770374477,1.15315578,2080.2,2079.6,1.06163669]
[1772770380576,0.96390299,2080.0,2079.6,1.06163669]
[1772770380881,0.96390299,2080.3,2079.7,1.01893113]
[1772770382080,0.96390299,2080.2,2079.7,1.01893113]
[1772770382777,2.53310603,2080.3,2079.7,1.01893113]
[1772770384280,0.96390299,2080.2,2079.7,1.01893113]
[1772770389084,0.96390299,2080.0,2079.7,20.197]
[1772770390286,0.96390299,2080.0,2079.5,1.01893113]
[1772770390479,0.96390299,2080.0,2079.6,21.21793113]
[1772770392387,0.96390299,2080.0,2079.6,20.203]
[1772770392585,0.96390299,2080.0,2079.6,21.22193113]
[1772770392779,0.96390299,2080.0,2079.4,1.01893113]
[1772770392780,0.96390299,2079.9,2079.4,1.01893113]
[1772770393482,0.96390299,2079.9,2079.4,21.22393113]
[1772770394484,0.96390299,2079.9,2079.5,1.01893113]
[1772770401190,0.96390299,2079.9,2079.4,20.215]
[1772770401394,0.96390299,2079.9,2079.5,1.01893113]
[1772770401992,0.96390299,2079.9,2079.4,1.01893113]
[1772770402194,0.96390299,2079.7,2079.0,1.01893113]
[1772770402894,0.96390299,2079.5,2079.0,1.01893113]
[1772770409396,0.88040877,2079.7,2079.0,1.01893113]
[1772770420197,5.36871635,2079.6,2079.0,1.01893113]
[1772770420398,0.93383629,2079.5,2079.0,1.01893113]
[1772770422002,0.93383629,2079.8,2079.0,1.01893113]
[1772770422201,6.30421198,2079.7,2079.0,1.01893113]
[1772770422399,5.37037569,2079.6,2079.0,1.01893113]
[1772770422906,0.93383629,2079.5,2078.9,0.93793531]
[1772770428403,0.93383629,2079.3,2078.9,0.93793531]
[1772770429904,0.93383629,2079.7,2078.9,0.93793531]
[1772770430102,0.93383629,2079.5,2078.9,0.93793531]
[1772770430298,5.37689059,2079.6,2078.9,0.93793531]
[1772770430299,0.93383629,2079.6,2078.9,0.93793531]
[1772770430501,0.93383629,2079.7,2078.9,0.93793531]
[1772770430700,5.37845391,2079.6,2078.9,0.93793531]
[1772770430907,0.93383629,2079.7,2078.9,0.93793531]
[1772770431107,5.37845406,2079.6,2078.9,0.93793531]
[1772770431306,0.93383629,2079.7,2078.9,0.93793531]
[1772770431508,5.38044777,2079.6,2078.9,0.93793531]
[1772770431801,0.93383629,2079.7,2078.9,0.93793531]
[1772770432108,5.38063897,2079.6,2078.9,0.93793531]
[1772770432308,0.93383629,2079.7,2078.9,0.93793531]
[1772770432509,5.38038253,2079.6,2078.9,0.93793531]
[1772770432710,0.93383629,2079.7,2078.9,0.93793531]
[1772770432902,5.38040942,2079.6,2078.9,0.93793531]
[1772770433106,0.93383629,2079.7,2078.9,0.93793531]
[1772770433306,5.38040649,2079.6,2078.9,0.93793531]
[1772770433613,0.93383629,2079.7,2078.9,0.93793531]
[1772770433911,0.93383629,2079.5,2078.9,0.93793531]
[1772770437614,0.93383629,2079.7,2078.9,0.93793531]
[1772770437816,5.38074427,2079.6,2078.9,0.93793531]
[1772770438015,0.93383629,2079.7,2078.9,0.93793531]
[1772770438216,5.38049925,2079.6,2078.9,0.93793531]
[1772770438419,0.93383629,2079.7,2078.9,0.93793531]
[1772770438714,5.38040499,2079.6,2078.9,0.93793531]
[1772770438913,0.93383629,2079.7,2078.9,0.93793531]
[1772770439113,5.38040433,2079.6,2078.9,0.93793531]
[1772770439315,0.93383629,2079.7,2078.9,0.93793531]
[1772770439615,6.31416482,2079.6,2078.9,0.93793531]
[1772770439809,0.93383629,2079.6,2078.9,0.93793531]
[1772770440409,6.24734385,2079.5,2078.9,0.93793531]
[1772770440619,0.86698026,2079.5,2078.9,0.93793531]
[1772770440920,0.86698026,2079.5,2079.0,0.83128956]
[1772770441615,0.86698026,2079.7,2079.0,0.83128956]
[1772770441822,0.86698026,2079.9,2079.0,0.83128956]
[1772770442121,5.38077158,2079.8,2079.0,0.83128956]
[1772770442320,0.86698026,2079.9,2079.0,0.83128956]
[1772770442612,5.37939559,2079.8,2079.0,0.83128956]
[1772770442818,0.86698026,2079.9,2079.0,0.83128956]
[1772770443018,5.37940375,2079.8,2079.0,0.83128956]
[1772770443217,0.86698026,2079.9,2079.0,0.83128956]
[1772770443419,6.24529976,2079.8,2079.0,0.83128956]
[1772770443620,0.86698026,2079.8,2079.0,0.83128956]
[1772770444718,6.00286268,2080.2,2079.1,20.91728956]
[1772770444719,0.86698026,2079.6,2079.1,20.91728956]
[1772770444919,0.86698026,2079.6,2079.0,0.83128956]
[1772770451625,0.86698026,2079.6,2078.7,0.83128956]
[1772770451830,0.86698026,2079.6,2078.9,0.83128956]
[1772770458430,0.86698026,2079.4,2078.9,0.83128956]
[1772770461432,0.86698026,2079.3,2078.7,0.83128956]
[1772770461736,0.86698026,2078.7,2078.3,0.83128956]
[1772770462337,0.86698026,2078.9,2078.3,0.83128956]
[1772770462834,0.87162621,2078.9,2078.3,0.83705137]
[1772770463747,0.87162621,2078.9,2078.4,20.93028956]
[1772770463938,0.87162621,2078.9,2078.5,0.83128956]
[1772770464242,0.87162621,2078.9,2078.4,20.93028956]
[1772770464537,0.86698026,2078.7,2078.2,0.83128956]
[1772770464938,0.87162621,2078.9,2078.4,0.83128956]
[1772770465339,0.87162621,2078.9,2078.1,20.1]
[1772770465340,0.86698026,2079.1,2078.6,0.83128956]
[1772770465743,0.86698026,2079.3,2078.6,0.83128956]
[1772770466445,0.87306004,2079.3,2078.6,0.83721008]
[1772770481955,0.00607978,2079.3,2078.8,0.73993921]
[1772770482161,0.00607978,2079.3,2078.6,20.82785973]
[1772770482162,0.78848586,2079.2,2078.6,20.82785973]
[1772770482458,0.78848586,2079.2,2078.6,0.74585973]
[1772770485761,2.3590083,2079.2,2078.6,0.74585973]
[1772770485964,0.78848586,2079.1,2078.6,0.74585973]
[1772770486258,0.78848586,2079.2,2078.6,0.74585973]
[1772770486460,0.78848586,2079.2,2078.0,7.50731622]
[1772770486655,0.78848586,2078.7,2077.9,0.73993921]
[1772770487557,0.78848586,2078.7,2077.9,0.74574056]
[1772770487864,0.78848586,2078.7,2078.0,8.24725543]
[1772770488163,0.78848586,2078.5,2078.1,0.73993921]
[1772770488354,1.57052244,2079.0,2078.1,0.73993921]
[1772770488661,0.78848586,2078.8,2078.2,8.24725543]
[1772770488862,0.78848586,2078.6,2078.2,0.73993921]
[1772770489064,0.78848586,2078.6,2078.2,8.24725543]
[1772770489664,0.78848586,2078.6,2078.2,0.73993921]
[1772770490758,0.78848586,2078.9,2078.2,0.73993921]
[1772770490960,0.78848586,2078.7,2078.3,0.73993921]
[1772770492362,0.78848586,2078.7,2078.2,7.50731622]
[1772770492569,0.78848586,2078.7,2078.2,8.24725543]
[1772770493566,0.78848586,2078.7,2078.3,0.73993921]
[1772770495370,0.78848586,2078.7,2078.2,8.24725543]
[1772770496868,0.78848586,2078.9,2078.3,0.73993921]
[1772770497963,0.78848586,2078.9,2078.4,8.24725543]
[1772770498172,0.78848586,2078.9,2078.2,8.24725543]
[1772770500170,0.78848586,2078.9,2078.3,0.94928383]
[1772770500569,0.78848586,2078.9,2078.4,7.50731622]
[1772770500765,0.94472308,2078.7,2078.4,7.50731622]
[1772770501171,0.94472308,2078.7,2078.4,6.36510322]
[1772770501370,0.94472308,2078.7,2078.1,20.71328383]
[1772770501670,0.94472308,2078.7,2078.2,0.94928383]
[1772770502969,0.94472308,2079.1,2078.4,0.94928383]
[1772770503169,5.58013505,2079.0,2078.4,0.94928383]
[1772770503364,5.58013505,2078.9,2078.4,0.94928383]
[1772770503870,0.94472308,2078.7,2078.5,6.36510322]
[1772770504068,0.94472308,2078.7,2078.5,6.21487528]
[1772770504374,0.94472308,2078.7,2078.2,0.94928383]
[1772770504574,0.94472308,2078.7,2078.4,5.7442455]
[1772770505870,0.94472308,2078.7,2078.4,6.69352933]
[1772770506270,0.94472308,2078.7,2078.4,5.7442455]
[1772770506475,0.94472308,2078.7,2078.4,6.69352933]
[1772770507373,0.94472308,2078.7,2078.4,5.7442455]
[1772770508470,0.94472308,2078.7,2078.3,0.94928383]
[1772770508669,0.94472308,2078.7,2078.4,6.69352933]
[1772770509870,0.94472308,2078.7,2078.4,5.7442455]
[1772770510271,0.94472308,2078.7,2078.4,6.69352933]
[1772770510676,0.94472308,2078.5,2078.0,0.94928383]
[1772770510979,0.94472308,2078.5,2078.1,0.94928383]
[1772770515782,0.94472308,2078.5,2077.9,0.95508518]
[1772770516284,0.94472308,2078.3,2077.9,0.95508518]
[1772770517381,1.57052244,2078.6,2077.9,0.95508518]
[1772770517687,5.59885418,2078.5,2078.0,0.94928383]
[1772770517878,0.94472308,2078.7,2078.0,0.94928383]
[1772770518081,5.59908414,2078.6,2078.0,0.94928383]
[1772770518284,6.54380722,2078.5,2078.0,0.94928383]
[1772770518580,5.59908414,2078.4,2078.0,0.94928383]
[1772770518785,0.94472308,2078.5,2078.0,0.94928383]
[1772770518988,5.5988122,2078.4,2078.0,0.94928383]
[1772770519181,4.94257956,2078.7,2078.0,0.94928383]
[1772770519380,6.54311289,2078.6,2078.0,0.94928383]
[1772770519585,0.94472308,2078.8,2078.0,0.94928383]
[1772770519889,0.94472308,2078.7,2078.0,0.94928383]
[1772770528788,4.94257956,2078.9,2078.0,0.94928383]
[1772770528992,0.94472308,2078.9,2078.0,0.94928383]
[1772770529590,3.99785648,2079.0,2078.0,0.94928383]
[1772770529897,5.12159166,2079.1,2078.2,1.12355877]
[1772770530098,1.12373518,2079.1,2078.2,1.12355877]
[1772770530500,1.12373518,2079.0,2078.3,1.18167738]
[1772770531598,1.12373518,2078.8,2078.3,1.18167738]
[1772770534904,1.12373518,2079.0,2078.3,1.18167738]
[1772770535102,5.12159166,2079.2,2078.3,1.18167738]
[1772770535308,1.12373518,2079.2,2078.3,1.18167738]
[1772770535598,1.12373518,2079.2,2078.2,19.734]
[1772770535599,1.12981496,2079.3,2078.5,1.08776374]
[1772770538004,1.12981496,2079.3,2078.6,1.18167738]
[1772770557118,1.12373518,2079.1,2078.6,1.18167738]
[1772770558015,1.12373518,2079.1,2078.3,1.05860242]
[1772770558217,1.12373518,2078.9,2078.3,1.05860242]
[1772770559516,1.12373518,2078.7,2078.0,1.04344058]
[1772770559823,1.12373518,2078.5,2078.0,1.04344058]
[1772770561724,1.10830421,2078.9,2078.0,1.04344058]
[1772770561922,1.10830421,2078.7,2078.0,1.04344058]
[1772770562219,5.10202764,2079.2,2078.2,1.04372094]
[1772770562420,5.46451885,2079.1,2078.2,1.04372094]
[1772770562621,5.46451885,2079.0,2078.2,1.04372094]
[1772770563420,1.10830421,2079.1,2078.2,1.04372094]
[1772770564020,0.00607978,2079.3,2078.2,1.04372094]
[1772770564221,6.57355012,2079.2,2078.2,1.04372094]
[1772770564522,1.10830421,2079.2,2078.2,1.04372094]
[1772770575425,0.00607978,2079.3,2078.5,0.92278781]
[1772770575630,0.00607978,2079.3,2078.7,0.92284459]
[1772770577334,1.10830421,2079.5,2078.7,0.92284459]
[1772770578122,1.10830421,2079.4,2078.5,0.90891867]
[1772770578331,1.10830421,2079.2,2078.5,0.90891867]
[1772770580733,1.10830421,2079.2,2078.3,0.89126251]
[1772770580929,1.10830421,2079.0,2078.0,0.89126251]
[1772770581147,1.10830421,2078.8,2078.0,0.89126251]
[1772770582635,1.10830421,2078.6,2077.8,20.72304267]
[1772770582936,1.10830421,2078.6,2077.8,20.60904267]
[1772770583436,1.10830421,2078.6,2077.9,0.88784402]
[1772770583831,1.10830421,2078.6,2078.0,0.87456187]
[1772770584632,1.10830421,2079.0,2078.2,0.86766272]
[1772770584832,1.10830421,2078.8,2078.2,0.86766272]
[1772770588436,1.10830421,2079.2,2078.6,0.83646507]
[1772770588833,1.10830421,2079.2,2078.4,0.83661879]
[1772770589035,1.00812833,2079.0,2078.4,0.83661879]
[1772770589231,1.00812833,2079.0,2078.1,0.82869351]
[1772770589436,1.00812833,2079.0,2078.2,20.37369351]
[1772770590839,1.00812833,2079.0,2078.3,0.82756103]
[1772770595840,1.00812833,2079.0,2078.4,0.79655481]
[1772770598747,0.94354323,2078.8,2078.3,20.44967394]
[1772770600438,0.94354323,2078.8,2078.0,20.44839707]
[1772770600638,0.94354323,2078.8,2078.1,0.76352129]
[1772770607050,0.94354323,2078.2,2077.2,1.5719075]
[1772770607246,0.94354323,2078.0,2077.4,20.47288854]
[1772770607442,0.94354323,2078.0,2077.5,0.75022061]
[1772770608048,0.94796157,2078.0,2077.5,0.75455384]
[1772770608445,0.94796157,2078.0,2077.5,0.00433323]
[1772770609645,0.94796157,2078.0,2077.5,0.74594212]
[1772770610246,0.94354323,2078.1,2077.6,1.5719075]
[1772770610448,0.94354323,2078.4,2077.7,0.74160889]
[1772770611249,0.94354323,2078.7,2078.1,0.73517137]
[1772770611446,0.94354323,2078.7,2078.3,0.72904321]
[1772770611651,0.94354323,2079.1,2078.3,0.72904321]
[1772770611952,0.94354323,2078.9,2078.3,0.72904321]
[1772770612355,0.00619625,2078.9,2078.5,0.73814873]
[1772770612555,0.94973948,2078.9,2078.5,0.73814873]
[1772770612753,0.00619625,2078.9,2078.5,0.73814873]
[1772770613153,0.94354323,2079.3,2078.7,0.7321546]
[1772770613350,0.94354323,2079.3,2078.9,0.7321546]
[1772770613660,0.94354323,2079.6,2078.9,0.7321546]
[1772770613858,0.94354323,2079.4,2078.9,0.7321546]
[1772770614255,3.98691163,2079.8,2079.1,0.72039587]
[1772770614256,0.94354323,2079.7,2079.1,0.72039587]
[1772770614464,0.00413968,2079.7,2079.3,0.71445355]
[1772770615152,0.94768291,2079.7,2079.1,0.00454335]
[1772770615359,0.94768291,2079.7,2079.1,0.71900461]
[1772770615759,0.94768291,2079.7,2078.5,0.24054]
[1772770615760,0.94768291,2079.7,2078.7,0.67529106]
[1772770615954,0.94768291,2079.7,2078.8,20.22183441]
[1772770616160,0.94768291,2079.7,2078.6,0.67983441]
[1772770616356,5.46076182,2079.6,2078.7,20.22683441]
[1772770616661,0.94768291,2079.7,2078.1,9.76902788]
[1772770616662,0.94354323,2079.5,2078.6,0.67392901]
[1772770617162,0.94354323,2079.5,2078.6,0.67847241]
[1772770618157,0.94354323,2079.5,2078.6,0.0045434]
[1772770618364,5.45860271,2079.4,2078.6,0.0045434]
[1772770618565,0.94354323,2079.3,2078.6,0.0045434]
[1772770619962,0.94354323,2079.3,2078.6,0.645599]
[1772770621263,0.94354323,2079.3,2078.6,0.0045434]
[1772770621668,0.94354323,2079.3,2078.6,0.63521106]
[1772770622271,0.94354323,2079.3,2078.6,0.0045434]
[1772770623367,0.84754208,2079.1,2078.6,0.0045434]
[1772770626068,0.84754208,2079.1,2078.6,0.61966308]
[1772770626273,0.84754208,2079.5,2078.6,0.61966308]
[1772770628773,0.84754208,2079.5,2078.7,20.02342761]
[1772770628973,0.84754208,2079.5,2078.8,0.59942761]
[1772770640978,0.84754208,2079.5,2078.6,0.0045434]
[1772770641174,0.84754208,2079.3,2078.6,0.0045434]
[1772770641380,0.84754208,2079.3,2078.6,0.51080377]
[1772770645581,0.84754208,2079.3,2078.6,0.0045434]
[1772770645887,0.84754208,2079.1,2078.3,0.49196998]
[1772770646683,0.84754208,2079.1,2078.3,0.49665348]
[1772770649481,0.84754208,2079.1,2078.4,20.04626247]
[1772770649686,0.84754208,2079.1,2078.5,0.4719913]
[1772770655494,0.84754208,2079.1,2078.3,0.49767804]
[1772770655792,0.84754208,2079.1,2078.4,0.53208918]
[1772770657594,5.9841204,2079.6,2078.4,0.53208918]
[1772770657595,0.82881789,2079.4,2078.4,0.53208918]
[1772770657795,0.82881789,2079.2,2078.4,0.53208918]
[1772770658487,0.82881789,2079.5,2078.6,0.53717054]
[1772770659892,0.82881789,2079.5,2078.4,8.08354565]
[1772770660086,0.82881789,2079.3,2078.5,20.11645609]
[1772770661296,0.82881789,2079.3,2078.6,0.52873798]
[1772770662196,0.82881789,2079.3,2078.7,19.582]
[1772770662897,0.82881789,2079.3,2078.4,0.51597345]
[1772770663099,0.82881789,2079.1,2078.5,20.09897345]
[1772770663397,0.82881789,2079.1,2078.6,0.51055438]
[1772770665498,0.82881789,2079.1,2078.5,20.08443702]
[1772770666695,0.82881789,2079.1,2078.6,0.49691191]
[1772770669101,0.82881789,2079.1,2078.7,19.586]
[1772770670396,0.82881789,2079.1,2078.4,0.4746938]
[1772770670594,0.82881789,2079.1,2078.3,20.06613452]
[1772770670892,0.82881789,2079.1,2078.4,0.47445102]
[1772770679409,0.82881789,2079.1,2078.3,0.0046835]
[1772770679604,0.82881789,2079.1,2078.3,19.5926835]
[1772770679907,0.82881789,2079.1,2078.3,20.09175073]
[1772770680809,0.82881789,2079.1,2078.4,0.4934369]
[1772770682610,0.82881789,2079.1,2078.5,19.587]
[1772770684305,6.2245504,2079.5,2077.7,6.96474379]
[1772770684306,0.60639458,2078.3,2077.7,6.96474379]
[1772770684507,0.60639458,2078.3,2077.1,0.87706546]
[1772770684508,5.56012251,2078.0,2077.1,0.87706546]
[1772770684707,5.90853387,2077.9,2077.1,0.87706546]
[1772770684906,5.90853387,2077.8,2077.1,0.87706546]
[1772770685108,9.473369,2077.7,2077.1,0.87706546]
[1772770685409,0.74470755,2077.5,2077.1,0.88160544]
[1772770685612,0.74470755,2077.3,2077.1,0.88160544]
[1772770685812,6.22890789,2077.2,2077.1,0.88160544]
[1772770686007,0.74470755,2077.2,2077.1,0.88160544]
[1772770686211,0.74470755,2077.2,2076.4,0.83740613]
[1772770686512,0.74470755,2077.2,2076.6,0.83740613]
[1772770687207,0.74470755,2077.2,2076.7,6.66407238]
[1772770688116,0.74470755,2077.2,2076.6,0.8406834]
[1772770688513,0.74470755,2077.2,2076.6,6.66785723]
[1772770691217,0.74470755,2077.2,2076.7,0.84525561]
[1772770691612,0.74470755,2077.2,2076.7,3.25085561]
[1772770691816,0.74470755,2077.2,2076.8,0.84323266]
[1772770692611,0.74470755,2077.2,2076.8,7.50730504]
[1772770693414,0.74470755,2077.2,2076.8,9.91290504]
[1772770695029,0.74470755,2077.2,2076.6,0.84489006]
[1772770695320,0.74470755,2077.2,2076.7,6.79000736]
[1772770696318,0.74470755,2077.2,2076.7,5.23373192]
[1772770698020,0.74470755,2077.2,2076.8,1.46845435]
[1772770698519,0.74470755,2077.2,2076.7,6.70218627]
[1772770698919,0.74470755,2077.2,2076.8,1.46822663]
[1772770699311,0.74470755,2077.2,2076.7,5.23373192]
[1772770699515,0.74470755,2077.2,2076.7,6.7085911]
[1772770699711,0.74470755,2077.2,2076.8,1.47485918]
[1772770700218,0.74470755,2077.2,2076.7,6.7085911]